Cogmind - Beta 13 X1 @@@ ROGUE MODE // 2023.08.12 @ 20:14:20 Player: Runia Result: Destroyed by ME-RLN with Improved Arc Thrower Performance ------------- Evolutions (1) 500 Regions Visited (6) 1200 Robots Destroyed (110) 550 Value Destroyed (2156) 2156 Prototype IDs (9) 180 Alien Tech Used (0) 0 Bonus (107) 107 TOTAL SCORE: 4693 Bonus ------- High Alert Combat Kills 107 Cogmind --------- Core Integrity 0/400 Matter 96/300 Energy 200/200 System Corruption 3% Temperature Cool (0) Movement Treading (400) Ox3 Location -8/Mines Parts ------- > --- POWER (1) -------- Cold Fusion Reactor > --- PROPULSION (2) --- Light Treads Armored Wheel > --- UTILITY (4) ------ Experimental Heat Sink Huge Storage Unit Gravity Neutralizer Advanced Targeting Computer > --- WEAPON (2) ------- 8R-AWN's Boregun 8R-AWN's Boregun > --- INVENTORY (25) --- Light Treads Light Treads Light Treads Armored Wheel Large Matter Pod (0) Advanced Weapon Cycler Advanced Transmission Jammer Core Shielding Makeshift System Shield Improved System Guard System Purifier Advanced Recalibrator Assault Rifle Assault Rifle Heavy Assault Rifle Improved Assault Rifle Improved Assault Rifle Improved Light Cannon Rocket Launcher Rocket Launcher Rocket Launcher Mace Makeshift Axe Peak State ------------ > --- POWER ------------ Cold Fusion Reactor > --- PROPULSION ------- Light Treads Armored Wheel > --- UTILITY ---------- Experimental Heat Sink Huge Storage Unit Advanced Targeting Computer System Purifier > --- WEAPON ----------- 8R-AWN's Boregun 8R-AWN's Boregun > --- INVENTORY -------- Light Treads Light Treads Light Treads Armored Wheel Large Matter Pod Gravity Neutralizer Advanced Weapon Cycler Assault Rifle Assault Rifle Heavy Assault Rifle Improved Assault Rifle Improved Assault Rifle Improved Light Cannon Rocket Launcher Rocket Launcher Rocket Launcher Mace Makeshift Axe [Rating: 53] Favorites ----------- Power Improved Ion Engine Engine Improved Ion Engine Reactor Cold Fusion Reactor Propulsion Light Treads Treads Light Treads Leg Aluminum Leg Wheel Armored Wheel Utility Huge Storage Unit Device Experimental Heat Sink Storage Huge Storage Unit Processor Advanced Targeting Computer Protection Light Armor Plating Weapon Heavy Assault Rifle Ballistic Gun Heavy Assault Rifle Launcher Rocket Launcher Special Weapon Mining Laser Build | -11 -10 -10 -9 -9 -9 -8 ------- Run | Jun Mat Min Mat Min Exi Min Slots Evolved 2 | . . . 2 . . . Power . | . . . . . . . Propulsion . | . . . . . . . Utility 2 | . . . 2 . . . Weapon . | . . . . . . . Parts Attached 83 | 2 10 11 33 3 24 . Power 8 | . 2 . 3 . 3 . Engine 7 | . 2 . 3 . 2 . Core . | . . . . . . . Reactor 1 | . . . . . 1 . Propulsion 25 | 2 1 2 11 . 9 . Treads 18 | 2 . 1 8 . 7 . Leg . | . . . . . . . Wheel 7 | . 1 1 3 . 2 . Hover . | . . . . . . . Flight . | . . . . . . . Utility 13 | . 2 . 4 1 6 . Device 3 | . . . . . 3 . Storage 1 | . 1 . . . . . Processor 2 | . . . 2 . . . Hackware . | . . . . . . . Protection 7 | . 1 . 2 1 3 . Artifact . | . . . . . . . Weapon 37 | . 5 9 15 2 6 . Energy Gun . | . . . . . . . Energy Cannon . | . . . . . . . Ballistic Gun 26 | . 4 4 12 1 5 . Ballistic Cannon . | . . . . . . . Launcher 10 | . 1 4 3 1 1 . Special Weapon 1 | . . 1 . . . . Impact Weapon . | . . . . . . . Slashing Weapon . | . . . . . . . Piercing Weapon . | . . . . . . . Special Melee Weapon . | . . . . . . . Unidentified Prototypes 5 | . . . . . 5 . Parts Lost 21 | . 1 4 5 . 11 . Power 3 | . 1 . . . 2 . Propulsion 7 | . . 1 2 . 4 . Utility 4 | . . 1 . . 3 . Weapon 7 | . . 2 3 . 2 . Highest Loss Streak 7 | . 1 2 2 . 7 . To Critical Strikes 6 | . . . . . 6 . Average Slot Usage (%) 95 | . 91 91 96 100 97 100 Engine 11 | . 13 14 11 11 7 . Treads 12 | . 15 14 11 11 12 11 Wheel 11 | . 12 13 10 11 9 11 Device 1 | . . . . . 7 22 Storage 12 | . 14 14 11 11 11 11 Processor 10 | . . . 19 17 11 11 Protection 10 | . 6 6 10 15 14 . Ballistic Gun 23 | . 27 25 21 21 21 22 Naked Turns . | . . . . . . . Heaviest Build 105 | 10 92 93 96 98 105 . Greatest Support 40 | 40 40 16 12 12 40 . Greatest Overweight (x) 9 | . 5 8 9 8 8 . Average Overweight (x) 6 | . 4 5 7 7 6 . Largest Inventory Capacity 25 | 8 25 25 25 25 25 25 Average Capacity 24 | 8 24 25 25 25 25 25 Most Carried 25 | 6 18 18 25 25 25 23 Average Carried 20 | 5 14 16 23 24 19 23 Final Capacity 25 | 8 25 25 25 25 25 25 Final Carried 25 | 4 17 14 25 25 23 23 Class Distribution -------------------- 79% | Mutant 20% | Scavenger-Mutant Dominant Class ---------------- Mutant | -10/Materials Mutant | -10/Mines Mutant | -9/Materials Mutant | -9/Mines Mutant | -9/Exiles Scavenger-Mutant | -8/Mines Resources | -11 -10 -10 -9 -9 -9 -8 ----------- Run | Jun Mat Min Mat Min Exi Min Matter Collected 3289 | 200 657 207 1272 108 845 . Remotely . | . . . . . . . Salvage Created 3596 | . 768 175 1836 164 597 56 Parts 311 | . 60 6 136 23 78 8 Haulers Intercepted 7 | . 2 . 5 . . . Recyclers Shooed 7 | . 3 . 3 1 . . Parts Field Recycled . | . . . . . . . Retrieved Matter . | . . . . . . . Parts Self-Destructed . | . . . . . . . Prevented . | . . . . . . . Kills | -11 -10 -10 -9 -9 -9 -8 ------- Run | Jun Mat Min Mat Min Exi Min Combat Hostiles Destroyed 75 | . 14 18 30 6 4 3 Guns 48 | . 11 6 25 2 1 3 AOE 27 | . 3 12 5 4 3 . Classes Destroyed 16 | . 7 2 5 . 2 . Worker 10 | . 1 2 5 2 . . Builder 8 | . 3 . 5 . . . Tunneler 3 | . . . 1 2 . . Hauler 7 | . 2 . 5 . . . Recycler 5 | . 3 . 2 . . . Mechanic 1 | . . . 1 . . . Operator 2 | . . . 2 . . . Turret 1 | . . . . . 1 . Watcher 4 | . 1 . 3 . . . Swarmer 17 | . 6 . 4 4 . 3 Grunt 28 | . 8 4 14 2 . . Brawler 2 | . . . 2 . . . Sentry 10 | . . . 10 . . . Demolisher 2 | . . 2 . . . . Zionite 7 | . . . . . 7 . Assembled 15 | . . 12 . . 3 . Best Kill Streak 10 | . 4 10 7 4 9 3 Combat Bots Only 10 | . 4 10 5 4 3 3 Max Kills in Single Turn 4 | . 2 3 3 4 2 2 Gunslinging 1 | . . . 1 . . . Exploded 4 | . 1 3 2 4 2 . Melee . | . . . . . . . Uniques/NPCs Destroyed 4 | . . . . . 4 . 8R-AWN (-9/Exiles) EX-HEX (-9/Exiles) EX-BIN (-9/Exiles) EX-DEC (-9/Exiles) Combat | -11 -10 -10 -9 -9 -9 -8 -------- Run | Jun Mat Min Mat Min Exi Min Damage Taken 4539 | . 318 808 1405 145 1685 178 Core 636 | . 40 194 230 14 129 29 Absorbed by Shields . | . . . . . . . Redirected to Shielding 28 | . . . . . 28 . Regen/Repaired (Parts) 244 | . 68 . 176 . . . Core Remaining (%) 53 | 100 . 6 . . . . Volleys Fired 338 | . 62 41 128 14 86 7 Largest 2 | . 2 2 2 2 2 2 Hottest 100 | . 40 100 46 46 60 60 Shots Fired 638 | . 120 63 248 27 166 14 Gun 602 | . 116 44 242 26 160 14 Cannon . | . . . . . . . Launcher 32 | . 4 15 6 1 6 . Special 4 | . . 4 . . . . Kinetic 602 | . 116 44 242 26 160 14 Thermal 4 | . . 4 . . . . Explosive 32 | . 4 15 6 1 6 . Electromagnetic . | . . . . . . . Robot Hit Streak 29 | . 12 16 29 8 22 5 Robot Miss Streak 4 | . 4 3 3 1 3 1 Penetration Max 2 | . . . . . . 2 Secondary Targets 6 | . 2 1 2 1 . . Max Gunslinging Chain 1 | . 1 1 1 1 . . Shots Hit Robots 455 | . 74 36 186 20 129 10 Core Hits 216 | . 39 40 83 12 37 5 Critical Kills 8 | . . . 1 . 5 2 Critical Parts Destroyed 13 | . 1 . . . 6 6 Critical Strikes 23 | . 1 . 2 . 12 8 Destroy 23 | . 1 . 2 . 12 8 Melee Attacks . | . . . . . . . Impact . | . . . . . . . Slashing . | . . . . . . . Piercing . | . . . . . . . Sneak Attacks . | . . . . . . . Combat Hostiles . | . . . . . . . Follow-up Attacks . | . . . . . . . Damage Inflicted 8715 | . 1207 1396 3240 494 2139 239 Guns 6497 | . 966 351 2689 315 1937 239 Cannons . | . . . . . . . Explosions 2218 | . 241 1045 551 179 202 . Melee . | . . . . . . . Ramming . | . . . . . . . Kinetic 6497 | . 966 351 2689 315 1937 239 Thermal . | . . . . . . . Explosive 2218 | . 241 1045 551 179 202 . Electromagnetic . | . . . . . . . Impact . | . . . . . . . Slashing . | . . . . . . . Piercing . | . . . . . . . Highest Corruption 3 | . 2 2 . . . 3 Average Corruption 1 | . 1 2 . . . 1 Corruption Purged . | . . . . . . . Corruption Blocked . | . . . . . . . Effects 16 | . 8 8 . . . . Message Errors 2 | . 2 . . . . . Matter Fused 5 | . 3 2 . . . . Heat Flow Errors 3 | . 1 2 . . . . Energy Discharges 2 | . . 2 . . . . Data Loss (minor) 1 | . . 1 . . . . Data Loss (major) 2 | . 1 1 . . . . Alerts 1 | . 1 . . . . . Overload Shots . | . . . . . . . Overflow Damage 89 | . 19 70 . . . . Projectiles . | . . . . . . . Explosions 89 | . 19 70 . . . . Melee . | . . . . . . . Knockbacks . | . . . . . . . Impact . | . . . . . . . Kinetic . | . . . . . . . Secondary . | . . . . . . . Self-Inflicted Damage 176 | . . 141 . . 35 . Shots 5 | . . 4 . . 1 . Rammed . | . . . . . . . Targets Rammed . | . . . . . . . Kicked . | . . . . . . . Crushed . | . . . . . . . Highest Temperature 225 | . 192 225 22 9 . . Average Temperature 29 | . 57 49 4 4 . . Received Heat Transfer 786 | . 96 93 543 54 . . Siege Activations . | . . . . . . . Robots Corrupted . | . . . . . . . Combat Hostiles . | . . . . . . . Parts Fried . | . . . . . . . Impact Corruptions . | . . . . . . . Robots Melted . | . . . . . . . Combat Hostiles . | . . . . . . . Parts Melted . | . . . . . . . Heat Transferred . | . . . . . . . Parts Sabotaged . | . . . . . . . Parts Stolen . | . . . . . . . Parts Stripped . | . . . . . . . Power Chain Reactions . | . . . . . . . Missiles Intercepted . | . . . . . . . Alert | -11 -10 -10 -9 -9 -9 -8 ------- Run | Jun Mat Min Mat Min Exi Min Peak Influence 610 | . 261 223 610 136 . 52 Initial 57 | . . 57 . 54 . . Average 154 | . 142 71 235 56 . 50 Maximum Alert Level 2 | . 1 1 2 . . . Low Security (%) 72 | 100 78 93 49 100 . 100 Level 1 18 | . 21 6 28 . . . Level 2 8 | . . . 22 . . . Level 3 . | . . . . . . . Level 4 . | . . . . . . . Level 5 . | . . . . . . . High Security . | . . . . . . . Max Security . | . . . . . . . Squads Dispatched 7 | . 5 . 2 . . . Investigation 3 | . 3 . . . . . Extermination . | . . . . . . . Reinforcement 4 | . 2 . 2 . . . Assault . | . . . . . . . Garrison . | . . . . . . . Intercept . | . . . . . . . Searches Triggered . | . . . . . . . Construction Impeded . | . . . . . . . Haulers Reinforced . | . . . . . . . Active Scanning Responses . | . . . . . . . Cargo Convoy Interrupts . | . . . . . . . Stealth | -11 -10 -10 -9 -9 -9 -8 --------- Run | Jun Mat Min Mat Min Exi Min Distress Signals 7 | . 3 1 3 . . . Communications Jammed . | . . . . . . . Distress Signals . | . . . . . . . Times Spotted 128 | . 26 18 49 6 24 5 Peak Tracking Total 9 | . 5 8 5 4 9 3 Tactical Retreats 8 | . 2 1 . . 5 . Traps | -11 -10 -10 -9 -9 -9 -8 ------- Run | Jun Mat Min Mat Min Exi Min Traps Triggered 3 | . 3 . . . . . Indirectly . | . . . . . . . Trap Hack Attempts . | . . . . . . . Triggered . | . . . . . . . Disarmed . | . . . . . . . Reprogrammed . | . . . . . . . Reused . | . . . . . . . Traps Extracted . | . . . . . . . Installed . | . . . . . . . Triggered . | . . . . . . . Machines | -11 -10 -10 -9 -9 -9 -8 ---------- Run | Jun Mat Min Mat Min Exi Min Machines Disabled 18 | . . . 2 1 15 . Max in Single Turn 2 | . . . 1 1 2 . Machines Repaired . | . . . . . . . Machines Sabotaged . | . . . . . . . Overloaded Fab Kills . | . . . . . . . Hacking | -11 -10 -10 -9 -9 -9 -8 --------- Run | Jun Mat Min Mat Min Exi Min Machines Accessed 16 | . 7 . 8 . 1 . Terminals 10 | . 4 . 6 . . . Fabricators . | . . . . . . . Repair Stations 3 | . 1 . 2 . . . Recycling Units 2 | . 2 . . . . . Scanalyzers . | . . . . . . . Garrison Access . | . . . . . . . Total Hacks 43 | . 16 . 26 . 1 . Successful 24 | . 9 . 14 . 1 . Failed 19 | . 7 . 12 . . . Catastrophic 3 | . 1 . 2 . . . Database Lockouts . | . . . . . . . Manual 9 | . 2 . 7 . . . Terminals 29 | . 11 . 18 . . . Fabricators . | . . . . . . . Repair Stations 10 | . 2 . 8 . . . Recycling Units 3 | . 3 . . . . . Scanalyzers . | . . . . . . . Garrison Access . | . . . . . . . Terminal Hacks 12 | . 5 . 6 . 1 . Record 1 | . . . . . 1 . Prototype ID Bank 2 | . 2 . . . . . Unreport Threat 3 | . . . 3 . . . Locate Traps 1 | . . . 1 . . . Hauler Manifests 2 | . 2 . . . . . Zone Layout 3 | . 1 . 2 . . . Fabricator Hacks . | . . . . . . . Repair Station Hacks 8 | . 2 . 6 . . . Scan Component 5 | . 1 . 4 . . . Repair 3 | . 1 . 2 . . . Recycling Unit Hacks . | . . . . . . . Scanalyzer . | . . . . . . . Garrison Access Hacks . | . . . . . . . Unauthorized Hacks 4 | . 2 . 2 . . . Terminals 2 | . . . 2 . . . Assimilate 1 | . . . 1 . . . Operators 1 | . . . 1 . . . Fabricators . | . . . . . . . Repair Stations . | . . . . . . . Recycling Units 2 | . 2 . . . . . Tunnel 2 | . 2 . . . . . Scanalyzers . | . . . . . . . Garrison Access . | . . . . . . . Data Cores Recovered . | . . . . . . . Used . | . . . . . . . Hacking Detections 11 | . 4 . 7 . . . Full Trace Events . | . . . . . . . Feedback Events . | . . . . . . . Feedback Blocked . | . . . . . . . Robot Schematics Acquired . | . . . . . . . Robots Built . | . . . . . . . Authchips . | . . . . . . . Time . | . . . . . . . Total Robot Build Rating . | . . . . . . . Part Schematics Acquired . | . . . . . . . Parts Built . | . . . . . . . Authchips . | . . . . . . . Time . | . . . . . . . Total Part Build Rating . | . . . . . . . Parts Repaired 3 | . 1 . 2 . . . Time 78 | . 26 . 52 . . . Parts Recycled . | . . . . . . . Recycled Matter . | . . . . . . . Retrieved Matter . | . . . . . . . Retrieved Components . | . . . . . . . Parts Scanalyzed . | . . . . . . . Part Schematics Acquired . | . . . . . . . Parts Damaged . | . . . . . . . Bothacking | -11 -10 -10 -9 -9 -9 -8 ------------ Run | Jun Mat Min Mat Min Exi Min Used RIF Installer . | . . . . . . . Robots Hacked . | . . . . . . . Non-combat . | . . . . . . . Combat . | . . . . . . . Robot Hacks Applied . | . . . . . . . Relay Couplers Released . | . . . . . . . Fabnet Peak Effective % . | . . . . . . . Robots Rewired . | . . . . . . . Allies Hacked . | . . . . . . . Hacks Repelled . | . . . . . . . Allies | -11 -10 -10 -9 -9 -9 -8 -------- Run | Jun Mat Min Mat Min Exi Min Total Allies . | . . . . . . . Largest Group . | . . . . . . . Highest-Rated Group . | . . . . . . . Highest-Rated Ally . | . . . . . . . Total Orders . | . . . . . . . Ally Attacks . | . . . . . . . Total Damage . | . . . . . . . Kills . | . . . . . . . Allies Corrupted . | . . . . . . . Allies Melted . | . . . . . . . Intel | -11 -10 -10 -9 -9 -9 -8 ------- Run | Jun Mat Min Mat Min Exi Min Robot Analysis Total . | . . . . . . . Derelict Logs Recovered 1 | . . . . 1 . . Drone Launches . | . . . . . . . Drone Recoveries . | . . . . . . . Exploration | -11 -10 -10 -9 -9 -9 -8 ------------- Run | Jun Mat Min Mat Min Exi Min Turns Passed 6416 | 3 1411 841 2134 854 1153 20 Spaces Moved 2648 | 1 651 353 807 401 435 . Core . | . . . . . . . Treads 50 | 1 48 . . . 1 . Legs . | . . . . . . . Wheels 2598 | . 603 353 807 401 434 . Hover . | . . . . . . . Flight . | . . . . . . . Fastest Speed 150 | 160 160 175 195 195 150 . Average Speed 191 | 160 178 180 201 201 194 . Slowest Speed 320 | 160 320 200 215 210 320 . Overloaded Moves . | . . . . . . . Propulsion Burnouts . | . . . . . . . Robots Hopped . | . . . . . . . Cave-ins Triggered . | . . . . . . . Exploration Rate (%) 58 | 2 96 67 81 84 74 3 Regions Visited 6 Branch Regions 4 Pre-discovered Areas 5 | . 2 . . 2 1 . Known Exits Taken . | . . . . . . . Unknown Exits Taken 6 | 1 1 1 1 1 1 . Scrap Searched 3 | . . 1 . 2 . . Spaces Dug 37 | . . 17 9 6 5 . Terrain Destroyed 235 | . 26 101 50 6 49 3 Melee . | . . . . . . . Projectile 21 | . . 4 . . 14 3 AOE 211 | . 26 97 50 6 32 . Terrain Rammed . | . . . . . . . Walls Destroyed . | . . . . . . . Machines Disabled . | . . . . . . . Actions | -11 -10 -10 -9 -9 -9 -8 --------- Run | Jun Mat Min Mat Min Exi Min Total 3356 | 4 781 483 1085 421 575 7 Wait 188 | . 43 77 59 1 8 . Move 2642 | . 650 352 806 400 434 . Hop . | . . . . . . . Pick Up 59 | . 13 1 30 1 14 . Fast Attach 11 | . 3 . 4 1 3 . Attach 21 | 2 1 3 5 . 10 . Detach . | . . . . . . . Swap 51 | . 6 8 24 2 11 . Drop 46 | 2 3 1 29 2 9 . Fire 338 | . 62 41 128 14 86 7 Melee . | . . . . . . . Ram . | . . . . . . . Kick . | . . . . . . . Crush . | . . . . . . . Escape Stasis . | . . . . . . . Rewire . | . . . . . . . Trap . | . . . . . . . Miscellaneous . | . . . . . . . Route ------- -11/Junkyard -10/Materials (discovered 4 exits: *Mat x3 / [*Min]) -10/Mines -9/Materials (discovered 3 exits: [*Mat x2] / [*Min]) -9/Mines (discovered 4 exits: [*Mat x2] / *Exi / [*Zio]) -9/Exiles -8/Mines History --------- Turn | Location | Event 4 | -11/Junkyard | Discovered new exit (range 0) 4 | -11/Junkyard | Entered Materials 139 | -10/Materials | Discovered new exit (range 16) 248 | -10/Materials | Discovered new exit (range 11) 300 | -10/Materials | Build established: Mutant 776 | -10/Materials | Repaired Assault Rifle 855 | -10/Materials | Discovered new exit (range 7) 1363 | -10/Materials | Discovered new exit (range 16) 1415 | -10/Materials | Entered Mines 1451 | -10/Mines | Discovered new exit (range 12) 1581 | -10/Mines | Received a Rocket Launcher from a helpful Derelict 1772 | -10/Mines | Assembled infested the area 1822 | -10/Mines | Destroyed 10 combat bots 2064 | -10/Mines | Core integrity fell below 50% 2066 | -10/Mines | Core integrity fell below 20% 2256 | -10/Mines | Entered Materials 2256 | -9/Materials | Evolved 2 slots: Utility x2 2787 | -9/Materials | Repaired Lgt. Treads 2814 | -9/Materials | Repaired Lgt. Armor Plating 3099 | -9/Materials | Build established: Scavenger-Mutant 3111 | -9/Materials | Discovered new exit (range 9) 3499 | -9/Materials | Discovered new exit (range 11) 3515 | -9/Materials | Build established: Mutant 3726 | -9/Materials | Core integrity fell below 50% 4210 | -9/Materials | Discovered new exit (range 9) 4390 | -9/Materials | Entered Mines 4484 | -9/Mines | A weapon hastily lodged in a ceiling crevice suddenly fell to the ground 4519 | -9/Mines | Discovered new exit (range 7) 4954 | -9/Mines | A Derelict revealed a hidden shortcut to a safe place 5028 | -9/Mines | Discovered new exit (range 10) 5236 | -9/Mines | Deemed a non-threat by the Exiles lab entrance 5236 | -9/Mines | Discovered new exit (range 5) 5244 | -9/Mines | Entered Exiles 5306 | -9/Exiles | Met 8R-AWN 5340 | -9/Exiles | Met EX-HEX 5440 | -9/Exiles | Met EX-DEC 5474 | -9/Exiles | Learned location of Zion (-7) 5505 | -9/Exiles | Attacked by the Exiles 5656 | -9/Exiles | Core integrity fell below 20% 5689 | -9/Exiles | Lost 7 parts (1p2n2u2w) 5739 | -9/Exiles | Destroyed 8R-AWN 5751 | -9/Exiles | Found Prototype Ballistic Gun 5754 | -9/Exiles | Found Prototype Ballistic Gun 5762 | -9/Exiles | Lost 4 parts (1p2n1u) 5837 | -9/Exiles | Identified 8R-AWN's Boregun (x2) 6115 | -9/Exiles | Destroyed EX-HEX 6138 | -9/Exiles | Destroyed EX-BIN 6141 | -9/Exiles | Build established: Scavenger-Mutant 6177 | -9/Exiles | Destroyed EX-DEC 6247 | -9/Exiles | Found Prototype Device 6249 | -9/Exiles | Identified System Purifier 6384 | -9/Exiles | Discovered new exit (range 10) 6397 | -9/Exiles | Entered Mines 6398 | -8/Mines | ME-RLN came to Exiles' defense 6399 | -8/Mines | ME-RLN assimilated allied S-10 Pest 6417 | -8/Mines | Destroyed by ME-RLN with Improved Arc Thrower Last Messages --------------- 06403_ ME-RLN suffers critical hit (Destroy). 06403_ Destroyed Imp. Arc Thrower. 06403_ HV Slug penetrates Wall. 06406_ HV Slug penetrates ME-RLN. 06406_ ME-RLN suffers critical hit (Destroy). 06406_ Destroyed Prototype Device. 06406_ HV Slug penetrates Wall. 06406_ HV Slug penetrates ME-RLN. 06406_ HV Slug penetrates Wall. 06408_ S-10 Pest reactivates. 06409_ HV Slug penetrates Wall. 06409_ HV Slug penetrates ME-RLN. 06409_ HV Slug penetrates Wall. 06412_ HV Slug penetrates ME-RLN. 06412_ HV Slug penetrates Wall. 06415_ HV Slug penetrates ME-RLN. 06415_ ME-RLN suffers critical hit (Destroy). 06415_ Destroyed Prototype Hover Unit. 06415_ HV Slug penetrates Earth. 06415_ HV Slug penetrates Wall. Map ----- +----------------------------------------------------+ | ?????????????????????????????????????????????????? | | ?????????????????????????????????????????????????? | | ?????????????????????????????????????????????????? | | ?????????????????????????????????????????????????? | | ?????????????????????????????????????????????????? | | ?????????????????????????????????????????????????? | | ?????????????????????????????????????????????????? | | ?????????????????????????????????????????????????? | | ?????????????????????????????????????????????????? | | ?????????????????????????????????????????????????? | | ?????????????????????????????????????????????????? | | ?????????????????????????????????????????????????? | | ?????????????????????????????????????????????????? | | ?????????????????????????????????????????????????? | | ?????????????????????????????????????????????????? | | ?????????????????????????????????????????????????? | | ?????????????????????????????????????????????????? | | ?????????????????????????????????????????????????? | | ?????????????????????????????????????????????????? | | ?????????????????????????????????????????????????? | | ?????????????????????????????????????????????????? | | ?????????????????????????????????????????????????? | | ???????????????????????????####??????????????????? | | ??????????????????????##### ##?????????????????? | | ?????????????????????## =[s= ###???????????????? | | ?????????????????????# @p%%[[; #???????????????? | | ?????????????????????## ##=%####???????????????? | | ??????????????????????## #??????????????????????? | | ???????????????????????# #??????????????????????? | | ???????????????????????# #??????????????????????? | | ???????????????????????# #??????????????????????? | | ???????????????????????# ??????????????????????? | | ???????????????????????# ??????????????????????? | | ??????????????????????? ??????????????????????? | | ??????????????????????? ??????????????????????? | | ??????????????????????? ??????????????????????? | | ??????????????????????? ??????????????????????? | | ??????????????????????? ##??????????????????????? | | ??????????????????????###????????????????????????? | | ?????????????????????????????????????????????????? | | ?????????????????????????????????????????????????? | | ?????????????????????????????????????????????????? | | ?????????????????????????????????????????????????? | | ?????????????????????????????????????????????????? | | ?????????????????????????????????????????????????? | | ?????????????????????????????????????????????????? | | ?????????????????????????????????????????????????? | | ?????????????????????????????????????????????????? | | ?????????????????????????????????????????????????? | | ?????????????????????????????????????????????????? | +----------------------------------------------------+ Best States ------------- Heat Dissipation 54 Energy Generation 17 Energy Capacity 265 Matter Stores 300 Matter Capacity 300 Sight Range 16 Terrain Scan Density 10 Additional Mass Support 12 Armor Coverage 150 Core Shielding 20 Evasion (%) 40 Targeting Accuracy 16 Recoil Reduction 2 Item Schematics ----------------- None Robot Schematics ------------------ None Fabricated ------------ Nothing Alien Tech Used ----------------- None Achievements -------------- None Challenges ------------ None Game ------ Seed GravitySurveybotCharger Manual? 0 Play Time 00:25:43 Cumulative 838.9 hours Start 2023.08.12 @ 19:48:27 End 2023.08.12 @ 20:14:20 Sessions 1 Manual Loads 0 Difficulty Rogue Special Mode None Game No. 727 Rogue 727 Adventurer 0 Explorer 0 Win Type - Total 42 Types 14/7/9/1/1/1/7/1/1 Lore% 93 Gallery% 96 Achievement% 82 Wizard Run 0 Options --------- ASCII 0 Keyboard 0 Movement Mouse Keybinds 1 Fullscreen 2 Font 24/Smallcaps Map View 76x50 Tactical HUD 1 Map Filters NONE Filters NONE Steam 1 RUN: ec3f811b-ee3e-42e9-a124-49e93914852e